bitfinex/quotes_ETHUSD_20220226
["timestamp","ask_amount","ask_price","bid_price","bid_amount"]
[1645886856518,0.00881873,2781.8,2781.1,0.4362441]
[1645886856519,0.00524277,2781.8,2781.1,0.4362441]
[1645886856756,0.00881873,2781.8,2781.1,0.7362441]
[1645886856950,0.00357596,2781.8,2781.1,0.731]
[1645886857153,1.177,2781.9,2781.1,0.731]
[1645886857353,0.00881897,2781.8,2781.3,0.00524396]
[1645886857550,0.00524301,2781.8,2781.3,0.00524396]
[1645886857755,0.00524301,2781.8,2781.1,1.53533396]
[1645886857952,0.00881897,2781.8,2781.1,1.53533396]
[1645886858352,0.00357596,2781.8,2781.1,1.10433396]
[1645886858552,1.177,2781.9,2781.1,1.10433396]
[1645886858753,0.00357596,2781.8,2781.1,1.13445225]
[1645886858955,1.177,2781.9,2781.1,1.13445225]
[1645886859153,0.00357596,2781.8,2781.1,1.13445225]
[1645886859355,0.07910614,2781.8,2781.1,1.13445225]
[1645886859555,0.00257464,2781.7,2781.1,1.13445225]
[1645886860507,0.00357596,2781.8,2781.1,1.13445225]
[1645886860709,1.177,2781.9,2781.1,1.13445225]
[1645886860910,0.00257455,2781.7,2781.1,1.13445225]
[1645886861914,0.00357596,2781.8,2781.1,1.13445225]
[1645886862113,0.00524314,2781.7,2781.2,0.0052441]
[1645886863114,0.00357596,2781.8,2781.1,1.13445225]
[1645886863315,0.00490447,2781.7,2781.2,0.00490537]
[1645886863714,0.00490447,2781.7,2781.3,0.03004969]
[1645886863918,0.00490447,2781.7,2781.3,0.02687487]
[1645886864374,0.00490452,2781.7,2781.3,0.02687487]
[1645886865177,0.00490452,2781.7,2781.3,11.32687487]
[1645886865477,0.14749196,2782.0,2781.3,13.22587487]
[1645886865679,0.00490452,2781.7,2781.3,13.22587487]
[1645886866377,0.00490452,2781.7,2781.3,12.32687487]
[1645886866777,0.00357596,2781.9,2781.3,12.32687487]
[1645886866978,0.00490452,2781.7,2781.3,12.32687487]
[1645886867177,0.00490452,2781.7,2781.3,13.56278189]
[1645886867677,0.00490452,2781.7,2781.3,12.56278189]
[1645886867877,0.00357596,2782.0,2781.3,11.32687487]
[1645886868105,0.00460532,2781.7,2781.3,11.02687487]
[1645886868506,0.00460532,2781.7,2781.3,0.02687487]
[1645886868708,0.07932678,2781.6,2781.3,0.02687487]
[1645886869307,0.07932678,2781.5,2781.2,0.00460617]
[1645886869510,0.07932678,2781.4,2781.2,0.00460617]
[1645886869710,1.95880735,2781.5,2781.2,0.00460617]
[1645886869909,0.07932678,2781.4,2781.2,0.00460617]
[1645886870211,0.43992678,2781.4,2780.2,0.27975432]
[1645886870411,0.07932678,2781.3,2780.2,0.27975432]
[1645886870612,0.07932678,2781.3,2781.2,0.004606]
[1645886871013,3.47932678,2781.3,2781.2,0.004606]
[1645886871211,4.47932678,2781.3,2781.2,0.004606]
[1645886871611,4.83992678,2781.3,2780.2,0.27975432]
[1645886871862,2.26025,2781.1,2780.2,0.02975432]
[1645886872064,3.50357596,2781.0,2780.2,0.02975432]
[1645886873768,3.86417596,2781.0,2780.1,7.22135722]
[1645886874365,0.36417596,2781.0,2780.1,7.22135722]
[1645886874566,0.00357596,2781.0,2780.1,8.24874498]
[1645886875067,0.00357596,2781.1,2780.1,8.24874498]
[1645886875514,0.00357596,2781.1,2780.4,0.00492668]
[1645886875716,4.50357596,2781.2,2780.4,0.00492668]
[1645886876319,4.50357596,2781.2,2780.1,7.21923772]
[1645886876520,6.30284976,2781.2,2780.7,0.00501635]
[1645886876716,6.47812158,2781.2,2780.7,0.00501635]
[1645886877120,5.57848158,2781.2,2780.7,0.00501635]
[1645886877319,4.5,2781.2,2780.7,0.00501635]
[1645886877618,0.3606,2781.1,2780.1,7.21923772]
[1645886877817,3.8606,2781.0,2780.1,7.21923772]
[1645886878023,0.3606,2781.0,2780.1,7.21923772]
[1645886878820,0.00357596,2781.1,2780.6,0.03006308]
[1645886879021,6.26604797,2781.2,2780.6,0.03006308]
[1645886879280,5.58836429,2781.2,2780.6,0.03006308]
[1645886879481,6.26247201,2781.2,2780.6,0.03006308]
[1645886880080,6.26247201,2781.2,2780.8,0.00506552]
[1645886880484,0.67410772,2781.1,2780.8,0.00506552]
[1645886880882,2.76247201,2781.2,2780.8,0.00506552]
[1645886881083,2.76247201,2781.2,2780.6,0.03006308]
[1645886881484,5.26247201,2781.2,2780.8,0.00506548]
[1645886881683,1.76247201,2781.2,2780.8,0.00506548]
[1645886881883,0.67410772,2781.1,2780.8,0.00506548]
[1645886882284,1.76247201,2781.2,2780.6,0.03006308]
[1645886882884,5.26247201,2781.2,2780.6,0.03006308]
[1645886883100,6.26247201,2781.2,2780.6,0.03006308]
[1645886883505,0.67410772,2781.1,2780.6,0.03006308]
[1645886883910,0.67410772,2781.1,2780.6,0.02692788]
[1645886884308,1.03470772,2781.1,2780.1,7.21930633]
[1645886884710,1.03470772,2781.0,2780.1,7.21930633]
[1645886884909,0.67410772,2781.0,2780.5,0.00521742]
[1645886885913,1.03470772,2781.0,2780.1,7.21930633]
[1645886886120,0.67410772,2781.0,2780.6,0.00521727]
[1645886886781,0.67410772,2781.1,2780.6,0.00521727]
[1645886887080,0.67410772,2781.1,2780.1,7.21930633]
[1645886887081,1.03470772,2781.1,2780.1,7.21930633]
[1645886887284,0.67410772,2781.0,2780.7,0.00521723]
[1645886888086,4.17410772,2781.0,2780.7,0.00521723]
[1645886888283,1.03470772,2781.0,2780.1,7.21930633]
[1645886888486,1.03470772,2781.0,2780.7,0.00521718]
[1645886888487,4.17410772,2781.0,2780.7,0.00521718]
[1645886888685,0.67410772,2781.0,2780.7,0.00521718]
[1645886889683,0.67410772,2781.0,2780.7,0.035022]
[1645886890084,5.45333962,2781.1,2780.7,0.035022]
[1645886890285,5.27410772,2781.1,2780.7,0.035022]
[1645886890716,0.67410772,2781.0,2780.7,0.02980482]
[1645886890915,0.67410772,2781.0,2780.8,0.00521713]
[1645886891117,0.75268266,2781.0,2780.8,0.00521713]
[1645886891316,3.5,2780.9,2780.8,0.00521713]
[1645886891517,0.07857494,2780.9,2780.8,0.00521713]
[1645886891917,0.07857494,2780.9,2780.7,0.02980482]
[1645886892118,4.75791634,2781.1,2780.7,0.02980482]
[1645886892119,0.07857494,2780.8,2780.7,0.035022]
[1645886892317,0.75268266,2781.0,2780.7,0.035022]
[1645886892517,0.07857494,2780.9,2780.7,0.035022]
[1645886892720,0.07857494,2780.8,2780.7,0.035022]
[1645886893019,0.07857494,2780.8,2780.7,0.02980482]
[1645886893320,0.75268266,2781.0,2780.7,0.02980482]
[1645886894366,0.75268266,2781.0,2780.8,0.02583067]
[1645886894769,0.75268266,2780.9,2780.8,0.02583067]
[1645886895371,0.07857494,2780.9,2780.8,0.02583067]
[1645886895772,0.6796851,2780.9,2780.8,0.02583067]
[1645886896173,0.07857494,2780.9,2780.8,0.02583067]
[1645886896573,0.67965437,2780.9,2780.8,0.02583067]
[1645886896975,0.75822931,2780.9,2780.8,0.02583067]
[1645886899622,0.75822931,2780.9,2780.8,0.02883526]
[1645886900024,0.90221131,2780.9,2780.8,0.02883526]
[1645886900322,0.75822931,2780.9,2780.8,0.02883526]
[1645886902962,0.07857494,2780.9,2780.8,0.02883526]
[1645886903662,0.75837094,2780.9,2780.7,0.03405244]
[1645886903863,0.75837094,2780.9,2780.7,0.02883526]
[1645886904065,0.90234994,2780.9,2780.7,0.02583342]
[1645886904266,0.07857494,2780.8,2780.7,0.0310506]
[1645886904665,0.75837094,2780.8,2780.7,0.0310506]
[1645886904866,0.679796,2780.8,2780.7,0.0310506]
[1645886905066,0.75837094,2780.8,2780.7,0.02583342]
[1645886906025,1.8996276,2781.2,2780.7,0.02583342]
[1645886906026,0.431,2781.9,2781.0,6.5]
[1645886906227,3.26701896,2782.7,2781.1,10.5]
[1645886906427,17.45,2783.0,2781.1,10.5]
[1645886906428,2.86907323,2782.9,2781.9,0.01278887]
[1645886906731,1.35904425,2783.1,2782.8,5.0]
[1645886906927,1.35904425,2783.1,2782.5,0.012513]
[1645886906928,3.17110325,2783.4,2782.9,3.5]
[1645886907127,3.17110325,2783.4,2783.0,1.55057563]
[1645886907128,1.35904425,2783.4,2783.0,1.55057563]
[1645886907329,1.812059,2783.8,2783.1,3.931]
[1645886907529,2.98812729,2785.2,2783.1,3.931]
[1645886907530,1.35904425,2784.1,2783.1,5.72781]
[1645886907730,1.812059,2784.4,2783.1,5.72781]
[1645886907731,1.35904425,2784.4,2783.4,0.8983155]
[1645886907930,1.35904425,2784.4,2783.5,3.931]
[1645886907931,0.143822,2783.9,2783.5,3.931]
[1645886908129,0.143822,2783.9,2783.5,4.2916]
[1645886908330,0.143822,2783.9,2783.5,1.7916]
[1645886908532,0.143822,2783.9,2783.8,1.23569326]
[1645886908930,0.143822,2783.9,2783.4,3.5]
[1645886909130,0.143822,2783.9,2783.3,0.3]
[1645886909371,2.01964425,2784.6,2783.2,5.231]
[1645886909571,0.6606,2784.6,2783.2,5.231]
[1645886909971,2.01964425,2784.6,2783.2,5.231]
[1645886910173,0.00523688,2784.0,2783.6,1.42833992]
[1645886911173,1.80230681,2784.5,2783.6,1.42833992]
[1645886911376,1.80230681,2784.5,2782.8,1.48706987]
[1645886911377,0.00523698,2783.9,2782.8,1.48706987]
[1645886911578,0.00523698,2783.9,2782.4,4.9949823]
[1645886911579,0.00523698,2783.9,2782.5,1.0]
[1645886911777,0.00523698,2783.9,2782.2,3.5]
[1645886911778,0.14907298,2783.9,2782.2,3.5]
[1645886911978,0.14907298,2783.9,2782.1,6.9346]
[1645886911979,0.14907298,2783.9,2782.1,0.431]
[1645886912175,0.36583698,2783.9,2782.2,3.5]
[1645886912377,1.28463247,2783.3,2782.4,1.2060601]
[1645886912578,0.00505503,2783.1,2782.4,1.2060601]
[1645886913015,11.33943162,2783.7,2782.4,1.2060601]
[1645886913214,12.63943162,2783.7,2782.4,1.2060601]
[1645886913820,1.52069112,2783.3,2782.4,1.2060601]
[1645886914916,1.52069112,2783.3,2782.0,0.3]
[1645886915117,1.52069112,2783.3,2781.9,2.44899]
[1645886915318,1.82069112,2783.3,2781.9,0.55]
[1645886915521,1.82069112,2783.3,2781.6,0.3606]
[1645886915818,1.82069112,2783.3,2781.9,1.17919327]
[1645886915819,1.40900687,2782.7,2781.9,1.17919327]
[1645886916119,0.44388,2783.3,2781.9,1.17919327]
[1645886916120,0.3,2783.3,2781.9,1.17919327]
[1645886916417,2.31661143,2783.4,2782.3,0.00521926]
[1645886916418,2.76763162,2783.4,2782.3,0.00521926]
[1645886916616,3.66677522,2783.4,2782.3,0.00521926]
[1645886916878,1.23856162,2783.2,2782.3,0.00521926]
[1645886917083,1.42506241,2782.7,2781.9,1.17919327]
[1645886917287,2.23856162,2783.2,2781.9,1.17919327]
[1645886917482,2.23856162,2783.2,2782.7,0.00521887]
[1645886917483,1.19913,2783.2,2782.7,0.00521887]
[1645886918283,0.3606,2783.1,2781.9,0.25]
[1645886918485,0.3606,2783.1,2781.6,0.3606]
[1645886918686,1.19913,2783.2,2782.8,0.00521878]
[1645886918888,2.19913,2783.2,2782.8,0.00521878]
[1645886919488,1.61580547,2783.1,2781.9,1.51359691]
[1645886919793,1.25520547,2783.1,2782.9,0.00521873]
[1645886919988,0.00354191,2783.0,2782.9,0.00521873]
[1645886920189,1.25520547,2783.1,2782.9,0.00521873]
[1645886920388,1.0,2783.0,2782.9,0.00521873]
[1645886920818,1.0,2783.0,2782.0,0.25]
[1645886921021,1.0,2783.0,2782.8,0.00521878]
[1645886921022,0.00354191,2782.9,2782.8,0.00521878]
[1645886921218,12.3,2783.0,2782.8,0.00521878]
[1645886921418,13.3,2783.0,2782.8,0.00521878]
[1645886921919,13.6606,2783.0,2781.9,0.25]
[1645886922123,0.0008,2782.6,2781.8,0.02730414]
[1645886922919,1.34867663,2782.5,2781.8,0.02730414]
[1645886923419,1.64867663,2782.5,2782.1,0.0052195]
[1645886924020,2.86564059,2782.5,2782.1,0.0052195]
[1645886924280,12.86564059,2782.5,2782.1,0.0052195]
[1645886924471,1.2740559,2782.0,2781.8,0.02730414]
[1645886924677,1.2740559,2782.0,2781.2,0.1437]
[1645886924880,1.2740559,2782.0,2780.8,0.1438]
[1645886924881,0.3606,2781.9,2780.8,0.1438]
[1645886925377,0.21736566,2781.7,2780.8,0.1438]
[1645886925576,0.21736566,2781.7,2780.2,10.95]
[1645886925577,1.22492351,2781.5,2780.7,1.43605151]
[1645886925777,1.22492351,2781.5,2781.2,0.00522032]
[1645886925778,1.52492351,2781.5,2781.2,0.00522032]
[1645886925979,0.3,2781.5,2781.2,0.00522032]
[1645886926378,0.89965,2781.6,2781.2,0.00522032]
[1645886926379,1.19965,2781.6,2781.2,0.00522032]
[1645886926577,0.3,2781.6,2781.2,0.00522032]
[1645886926780,0.21736566,2781.7,2780.7,1.43605151]
[1645886926781,0.51736566,2781.7,2780.7,1.43605151]
[1645886927182,0.51736566,2781.7,2781.3,0.00504798]
[1645886927383,1.33806004,2781.6,2781.3,0.00504798]
[1645886927780,4.93806004,2781.6,2781.3,0.00504798]
[1645886928017,3.6,2781.6,2780.7,1.43605151]
[1645886928218,3.6,2781.6,2781.3,0.00504793]
[1645886929223,4.98370876,2781.6,2780.7,1.43605151]
[1645886929423,4.98370876,2781.6,2781.3,0.00504793]
[1645886929627,0.01360024,2781.4,2781.3,0.00504793]
[1645886930424,0.01360024,2781.4,2780.9,0.03132092]
[1645886930624,0.01360024,2781.4,2781.2,0.00489251]
[1645886931429,0.15755624,2781.4,2781.2,0.00489251]
[1645886931787,0.15755624,2781.4,2781.2,0.00489255]
[1645886932784,0.01360024,2781.4,2780.9,0.03132092]
[1645886932981,0.01360024,2781.4,2781.2,0.00489255]
[1645886933978,0.01360024,2781.4,2780.9,0.03132092]
[1645886934178,0.01360024,2781.4,2781.2,0.00490305]
[1645886934777,0.01360024,2781.4,2781.3,0.03112881]
[1645886935377,0.15754524,2781.4,2781.3,0.03112881]
[1645886935813,0.01360024,2781.4,2781.3,0.03112881]
[1645886936617,0.01360024,2781.4,2781.3,0.02959323]
[1645886939461,0.15754424,2781.4,2781.3,0.02959323]
[1645886939666,0.15754424,2781.4,2781.2,0.03603111]
[1645886940067,0.15754424,2781.4,2781.2,0.03112881]
[1645886940266,0.15754424,2781.4,2781.2,0.03603111]
[1645886940667,0.01360024,2781.4,2781.2,0.03603111]
[1645886941267,0.01360024,2781.4,2781.2,0.03112881]
[1645886941471,0.01360024,2781.4,2781.2,0.0360312]
[1645886942470,0.01360024,2781.4,2781.2,0.03112881]
[1645886942672,0.01360024,2781.4,2781.2,0.0360312]
[1645886942871,0.01261841,2781.4,2781.2,0.0360312]
[1645886943118,0.15657041,2781.4,2781.2,0.0360312]
[1645886943614,0.01261841,2781.4,2781.2,0.03112881]
[1645886943816,0.01261841,2781.4,2781.2,0.03350172]
[1645886944916,0.01261841,2781.4,2781.2,0.03112881]
[1645886945120,0.01261841,2781.4,2781.2,0.03603471]
[1645886945918,0.01261841,2781.4,2781.2,0.03112881]
[1645886946322,0.01261841,2781.4,2781.2,0.03603471]
[1645886947165,0.15656041,2781.4,2781.2,0.03112881]
[1645886947364,0.01261841,2781.4,2781.2,0.03603471]
[1645886948469,0.01261841,2781.4,2781.2,0.03112881]
[1645886948668,0.01261841,2781.4,2781.2,0.03603471]
[1645886949667,0.01261841,2781.4,2781.2,0.03112881]
[1645886949871,0.01261841,2781.4,2781.2,0.03603471]
[1645886950734,0.01261841,2781.4,2781.2,0.03112881]
[1645886951134,0.15657041,2781.4,2781.2,0.03603471]
[1645886951336,0.01261841,2781.4,2781.2,0.03603471]
[1645886951936,0.01261841,2781.4,2781.2,0.03112881]
[1645886952335,0.01261841,2781.4,2781.2,0.03603471]
[1645886953235,0.01261841,2781.4,2781.2,0.03112881]
[1645886953636,13.18490434,2781.5,2781.2,0.03603471]
[1645886953834,0.01622211,2781.4,2781.2,0.0049059]
[1645886954271,1.64750764,2781.3,2781.2,0.0049059]
[1645886954462,1.26039,2781.2,2780.3,0.03107344]
[1645886954662,2.16018,2781.2,2780.3,0.03107344]
[1645886954862,3.16018,2781.2,2780.3,0.03107344]
[1645886955063,3.30415,2781.2,2780.3,0.03107344]
[1645886955463,1.24573666,2780.8,2780.3,0.03107344]
[1645886955869,1.24573666,2780.8,2780.6,0.00490637]
[1645886956267,4.22978203,2781.2,2780.6,0.00490637]
[1645886956867,4.22978203,2781.2,2780.3,0.03107344]
[1645886956868,4.59038203,2781.2,2780.3,0.03107344]
[1645886957068,4.22978203,2781.2,2780.8,0.00490624]
[1645886957870,1.25289532,2781.1,2780.8,0.00490624]
[1645886958124,0.3,2781.1,2780.3,0.03107344]
[1645886958326,1.0,2781.2,2780.9,0.00490616]
[1645886958527,0.143973,2781.2,2780.9,0.00490616]
[1645886958730,0.143978,2781.3,2780.9,0.00490616]
[1645886958927,0.01622211,2781.4,2781.0,1.51956555]
[1645886959128,0.01622211,2781.4,2781.1,1.27401442]
[1645886959427,3.0031,2781.8,2781.1,1.27401442]
[1645886959627,2.3606,2782.0,2781.1,1.27401442]
[1645886959827,2.3606,2782.0,2781.0,0.00490608]
[1645886959828,2.6606,2782.0,2781.0,0.00490608]
[1645886960028,2.3606,2782.0,2781.0,0.00490608]
[1645886960231,3.3606,2782.0,2781.0,0.00490608]
[1645886960428,2.3606,2782.0,2780.6,4.5]
[1645886960635,3.3606,2782.0,2781.4,0.00490574]
[1645886960832,1.42657471,2781.8,2781.4,0.00490574]
[1645886961030,0.89957,2781.8,2781.4,0.00490574]
[1645886961532,1.26017,2781.8,2780.5,3.53271956]
[1645886961785,1.26017,2781.8,2780.6,1.51952788]
[1645886961982,1.26017,2781.8,2780.7,3.5]
[1645886962179,1.4220177,2781.7,2781.5,0.00490566]
[1645886962880,1.4220177,2781.7,2780.5,0.03271956]
[1645886962881,0.3,2781.7,2780.5,0.03271956]
[1645886963078,1.19957,2781.8,2781.5,0.00490564]
[1645886963677,1.43201901,2781.8,2781.5,0.00490564]
[1645886963880,3.89952,2782.0,2781.5,0.00490564]
[1645886964078,3.89952,2782.0,2781.0,1.08674126]
[1645886964283,3.89952,2782.0,2781.6,0.03135313]
[1645886964284,3.6,2781.7,2781.6,0.03135313]
[1645886964681,4.6,2781.7,2781.6,0.03135313]
[1645886964880,3.6,2781.7,2781.6,0.03135313]
[1645886969665,3.6,2781.7,2781.5,0.0310332]
[1645886970072,3.6,2781.7,2781.5,0.02612761]
[1645886970270,3.743938,2781.7,2781.5,0.03103324]
[1645886970670,3.6,2781.7,2781.5,0.03103324]
[1645886971273,3.6,2781.7,2781.5,0.02612761]
[1645886971473,3.6,2781.7,2781.5,0.03103324]
[1645886973621,3.9,2781.7,2781.5,0.02612761]
[1645886973822,4.043937,2781.7,2781.5,0.03120403]
[1645886974227,5.043937,2781.7,2781.5,0.03120403]
[1645886974425,4.043937,2781.7,2781.5,0.03120403]
[1645886974824,4.043937,2781.7,2781.5,0.02612761]
[1645886975025,4.043937,2781.7,2781.5,0.03120403]
[1645886975224,3.9,2781.7,2781.5,0.03120403]
[1645886976029,3.9,2781.7,2781.5,0.02612761]
[1645886976230,3.9,2781.7,2781.5,0.03120403]
[1645886976430,5.25904425,2781.7,2781.5,0.03120403]
[1645886976630,6.25904425,2781.7,2781.5,0.03016765]
[1645886977365,6.25904425,2781.7,2781.5,0.02509123]
[1645886977563,6.25904425,2781.7,2781.5,0.03005563]
[1645886977764,6.40299625,2781.7,2781.5,0.03005563]
[1645886977963,6.25904425,2781.7,2781.5,0.03005563]
[1645886978463,6.25904425,2781.7,2781.5,0.02509123]
[1645886978664,6.25904425,2781.7,2781.5,0.03005563]
[1645886979664,6.25904425,2781.7,2781.5,0.02509123]
[1645886979863,6.25904425,2781.7,2781.5,0.03005563]
[1645886980066,7.25904425,2781.7,2781.5,0.03005563]
[1645886980722,7.25904425,2781.7,2781.5,0.02509123]
[1645886981121,7.25904425,2781.7,2781.5,0.0299929]
[1645886981323,5.9,2781.7,2781.5,0.0299929]
[1645886981720,6.043948,2781.7,2781.5,0.0299929]
[1645886982026,6.043948,2781.7,2781.5,0.02509123]
[1645886982220,6.043948,2781.7,2781.5,0.0299929]
[1645886982621,5.043948,2781.7,2781.5,0.0299929]
[1645886982822,6.043948,2781.7,2781.5,0.0299929]
[1645886983022,5.9,2781.7,2781.5,0.0299929]
[1645886983221,5.9,2781.7,2781.5,0.02509123]
[1645886983424,5.9,2781.7,2781.5,0.0299929]
[1645886984468,5.9,2781.7,2781.5,0.02509123]
[1645886984670,5.9,2781.7,2781.5,0.02999713]
[1645886984870,4.9,2781.7,2781.5,0.02999713]
[1645886985672,5.043942,2781.7,2781.5,0.02509123]
[1645886985873,5.043942,2781.7,2781.5,0.02999713]
[1645886986274,4.9,2781.7,2781.5,0.02999713]
[1645886986871,4.9,2781.7,2781.5,0.02509123]
[1645886987072,4.9,2781.7,2781.5,0.02999713]
[1645886988121,4.9,2781.7,2781.5,0.02509123]
[1645886988321,4.9,2781.7,2781.5,0.02999684]
[1645886988621,6.09983457,2781.7,2781.5,0.02999684]
[1645886988821,4.9,2781.7,2781.5,0.02999684]
[1645886989221,4.9,2781.7,2781.5,0.02509123]
[1645886989421,4.9,2781.7,2780.6,0.16984124]
[1645886989621,4.9,2781.7,2781.5,0.00488806]
[1645886989622,4.6,2781.7,2781.5,0.00488806]
[1645886990022,3.6,2781.7,2781.5,0.00488806]
[1645886990421,3.6,2781.7,2781.0,1.24912106]
[1645886990628,3.6,2781.7,2781.5,0.00488806]
[1645886991628,3.6,2781.7,2780.6,3.66984124]
[1645886991878,3.6,2781.7,2781.5,0.00488925]
[1645886992774,3.6,2781.7,2780.6,4.3433412]
[1645886992975,3.6,2781.7,2780.8,1.08538936]
[1645886992976,1.06684227,2781.6,2780.8,1.08538936]
[1645886993175,1.06684227,2781.6,2781.5,0.0049068]
[1645886993977,1.06684227,2781.6,2780.7,3.5]
[1645886994176,1.06684227,2781.6,2780.8,1.51954543]
[1645886994377,3.6,2781.7,2781.4,0.00490684]
[1645886995278,3.6,2781.7,2780.7,3.5]
[1645886995525,3.6,2781.7,2781.4,0.0049056]
[1645886996427,3.6,2781.7,2781.1,1.09003964]
[1645886996727,3.6,2781.7,2781.4,0.00481444]
[1645886997327,3.743937,2781.7,2781.4,0.00481444]
[1645886997527,3.6,2781.7,2781.1,1.09003964]
[1645886997731,3.6,2781.7,2781.2,1.51949513]
[1645886997928,3.6,2781.7,2781.4,0.00481444]
[1645886998530,3.6,2781.7,2781.5,1.5194561]
[1645886998831,3.6,2781.7,2781.6,3.52604124]
[1645886999130,3.6,2781.7,2781.6,5.04549734]
[1645886999384,3.5,2781.7,2781.6,6.24217136]
[1645887001184,3.643902,2781.7,2781.6,6.24217136]
[1645887001687,3.5,2781.7,2781.6,6.24217136]
[1645887002689,1.87967606,2781.7,2781.6,19.30377136]
[1645887003316,1.87967606,2781.7,2781.6,19.97727132]
[1645887003517,1.87967606,2781.7,2781.6,19.30377136]
[1645887003917,1.87967606,2781.7,2781.6,19.97727132]
[1645887004216,1.87967606,2781.7,2781.6,22.10909956]
[1645887004418,1.87967606,2781.7,2781.6,19.30377136]
[1645887004616,1.68543878,2781.7,2781.6,19.30377136]
[1645887004817,1.68543878,2781.7,2781.6,8.33377136]
[1645887005919,1.68543878,2781.7,2781.6,7.97317136]
[1645887006124,1.68543878,2781.7,2781.6,6.04549734]
[1645887006322,1.68543878,2781.7,2781.6,2.54549734]
[1645887006782,1.68543878,2781.7,2781.6,1.54549734]
[1645887007775,1.68543878,2781.7,2781.6,0.02604124]
[1645887008374,1.68543878,2781.7,2781.6,1.54531692]
[1645887009174,1.82935578,2781.7,2781.6,1.54531692]
[1645887009380,1.82935578,2781.7,2781.6,0.02604124]
[1645887009776,1.68543878,2781.7,2781.6,0.02604124]
[1645887009976,1.68543878,2781.7,2781.6,1.54531316]
[1645887010731,1.68543878,2781.7,2781.6,1.84531316]
[1645887013038,1.82932778,2781.7,2781.6,1.84531316]
[1645887013433,1.68543878,2781.7,2781.6,1.84531316]
[1645887013834,1.68543878,2781.7,2781.6,1.54531316]
[1645887014280,1.68543878,2781.7,2781.6,1.55515982]
[1645887014473,1.68543878,2781.7,2781.6,0.0358879]
[1645887014872,1.68543878,2781.7,2781.6,1.55513829]
[1645887015273,1.68543878,2781.7,2781.6,0.0358879]
[1645887016678,2.7905292,2781.7,2781.6,0.0358879]
[1645887016878,2.9344652,2781.7,2781.6,0.0358879]
[1645887017177,2.7905292,2781.7,2781.6,0.0358879]
[1645887017377,7.0,2781.6,2780.8,0.25]
[1645887017579,3.5,2781.5,2780.7,0.00365497]
[1645887017780,4.8,2781.5,2780.7,0.00365497]
[1645887018017,10.97,2781.4,2780.7,0.00365497]
[1645887018224,1.21960357,2780.9,2780.7,0.00365497]
[1645887018419,1.21960357,2780.9,2780.7,1.51968772]
[1645887018822,1.21960357,2780.9,2780.3,0.00365497]
[1645887019121,1.21960357,2780.9,2780.3,1.52339562]
[1645887019522,1.21960357,2780.9,2780.5,0.00456754]
[1645887019722,1.21960357,2780.9,2780.6,1.51974065]
[1645887020727,1.21960357,2780.9,2780.7,1.51974065]
[1645887021965,1.21960357,2780.9,2780.7,0.00456737]
[1645887022167,1.01960357,2780.9,2780.7,0.00456737]
[1645887022766,1.01960357,2780.9,2780.3,0.00365497]
[1645887022966,1.01960357,2780.9,2780.3,1.523522]
[1645887023168,4.8606,2781.3,2780.7,0.00462646]
[1645887023169,4.5,2781.3,2780.7,0.00462646]
[1645887023471,1.0,2781.3,2780.7,0.00462646]
[1645887023669,1.1864,2781.4,2780.8,1.51972089]
[1645887023867,0.3,2781.5,2780.8,1.51972089]
[1645887024068,4.8,2781.6,2780.8,1.51972089]
[1645887024269,1.27083857,2781.2,2781.0,0.0046262]
[1645887024871,1.41480257,2781.2,2781.0,0.0046262]
[1645887025170,1.57083857,2781.2,2780.8,0.03188217]
[1645887025629,1.57083857,2781.2,2781.0,0.0046262]
[1645887026426,1.57083857,2781.2,2780.8,0.03188217]
[1645887026627,1.57083857,2781.2,2781.0,0.00462022]
[1645887027627,1.57083857,2781.2,2780.8,0.03188217]
[1645887027827,1.57083857,2781.2,2781.0,0.00462022]
[1645887028828,1.57083857,2781.2,2780.8,0.03188217]
[1645887028829,0.143969,2781.2,2780.8,0.03188217]
[1645887029129,0.143969,2781.2,2781.0,0.00462022]
[1645887029375,3.9,2781.3,2781.0,0.00462022]
[1645887029582,3.9,2781.3,2781.1,0.03170204]
[1645887029780,4.6962145,2781.3,2781.1,0.03170204]
[1645887029975,3.6,2781.3,2781.1,0.03170204]
[1645887030377,3.6,2781.3,2781.1,0.03632278]
[1645887031188,3.6,2781.3,2781.1,0.03170204]
[1645887031588,3.6,2781.3,2781.1,0.03632278]
[1645887031986,3.6,2781.3,2781.2,1.51947697]
[1645887032187,1.97927587,2781.3,2781.2,1.51947697]
[1645887032586,2.12320787,2781.3,2781.2,1.51947697]
[1645887033020,1.97927587,2781.3,2781.1,0.03632274]
[1645887033620,1.97927587,2781.3,2781.1,0.03170204]
[1645887034023,3.5,2781.2,2781.1,0.03632271]
[1645887034227,1.3,2781.2,2781.1,0.03632271]
[1645887034622,0.3,2781.2,2781.1,0.02345299]
[1645887034820,3.27927587,2781.3,2781.1,0.01883232]
[1645887035420,4.17901587,2781.3,2781.1,0.01883232]
[1645887035627,3.17901587,2781.3,2781.1,0.01883232]
[1645887035826,7.67901587,2781.3,2781.1,0.01883232]
[1645887036027,6.83249369,2781.3,2781.1,0.01883232]
[1645887036329,4.33249369,2781.3,2781.1,0.02345299]
[1645887036530,4.17901587,2781.3,2781.1,0.02345299]
[1645887036777,4.32299087,2781.3,2781.1,0.02345299]
[1645887037067,4.17901587,2781.3,2781.1,0.02345299]
[1645887037268,4.17901587,2781.3,2781.1,0.01883232]
[1645887037467,4.17901587,2781.3,2781.1,0.023453]
[1645887038270,3.27927587,2781.3,2781.1,0.023453]
[1645887038569,3.27927587,2781.3,2781.1,0.01883232]
[1645887038769,3.27927587,2781.3,2781.1,0.023453]
[1645887038974,3.27927587,2781.3,2781.1,0.07044924]
[1645887039169,2.27927587,2781.3,2781.1,0.07044924]
[1645887039775,2.27927587,2781.3,2781.1,0.06582856]
[1645887039971,2.27927587,2781.3,2780.7,0.02562601]
[1645887039972,3.5,2781.2,2780.7,0.02562601]
[1645887040173,2.27927587,2781.3,2780.7,0.02197104]
[1645887040174,3.02317587,2781.3,2780.7,0.02197104]
[1645887040370,1.0,2781.2,2780.7,0.02197104]
[1645887040627,4.02317587,2781.3,2780.7,0.02197104]
[1645887040828,3.72317587,2781.3,2780.7,0.02197104]
[1645887041025,1.19153544,2780.8,2780.7,0.02197104]
[1645887043228,1.1288,2781.2,2780.7,0.02197104]
[1645887044468,1.272766,2781.2,2780.8,0.05757158]
[1645887044667,1.272766,2781.2,2780.8,0.0628027]
[1645887044869,1.1288,2781.2,2780.8,0.0628027]
[1645887045268,1.37849188,2781.0,2780.8,0.0628027]
[1645887045671,1.37849188,2781.0,2780.8,0.05757158]
[1645887045870,1.37849188,2781.0,2780.8,0.06280274]